bitfinex/quotes_ETHUSD_20250702
["timestamp","ask_amount","ask_price","bid_price","bid_amount"]
[1751478507584,0.02,2559.0,2558.8,0.1952]
[1751478507780,0.02,2559.0,2558.9,1.2805]
[1751478508579,0.02,2559.0,2558.9,5.18842918]
[1751478510442,0.02,2560.1,2559.8,1.1703]
[1751478510883,0.02,2560.1,2559.9,0.1952]
[1751478513535,0.02,2560.1,2559.9,3.90633478]
[1751478513736,0.02,2560.1,2560.0,1.91896348]
[1751478514037,0.02,2560.1,2560.0,1.4113]
[1751478514250,0.02,2560.1,2560.0,5.61766846]
[1751478514538,0.02,2560.1,2560.0,24.37766846]
[1751478515523,0.02,2560.1,2560.0,15.61766846]
[1751478515721,0.02,2560.1,2560.0,14.67442281]
[1751478515912,0.02,2560.1,2560.0,15.61766846]
[1751478516108,0.02,2560.1,2560.0,1.4113]
[1751478516309,0.02,2560.1,2559.8,2.321]
[1751478516310,0.02,2560.1,2559.8,3.5348]
[1751478516533,0.02,2560.1,2559.8,3.73]
[1751478516820,0.02,2560.1,2559.8,3.5348]
[1751478517015,0.02,2560.1,2559.9,0.1952]
[1751478517320,0.02,2560.1,2559.9,5.13860259]
[1751478517520,0.02,2560.1,2560.0,5.33365]
[1751478517726,0.02,2560.1,2560.0,5.63019074]
[1751478519480,0.02,2560.1,2560.0,15.73617666]
[1751478519645,0.02,2560.1,2560.0,18.88234958]
[1751478520485,0.02,2560.1,2559.0,1.41592861]
[1751478520709,0.02,2560.1,2559.2,1.297]
[1751478520983,0.02,2560.1,2559.3,2.321]
[1751478521278,0.39313487,2560.2,2559.3,2.321]
[1751478521475,13.90541575,2560.6,2559.4,0.78206257]
[1751478521635,10.02,2560.7,2559.5,1.2848]
[1751478521836,0.02,2560.7,2559.6,3.90684442]
[1751478522039,0.02,2560.7,2559.7,0.51916444]
[1751478522283,0.02,2560.7,2559.8,11.071]
[1751478522852,0.02,2560.7,2559.7,0.51916444]
[1751478523040,4.47518662,2560.7,2559.8,2.321]
[1751478523370,3.90549311,2560.5,2559.8,2.321]
[1751478523775,3.90559941,2560.5,2559.8,2.321]
[1751478523962,3.9057079,2560.4,2559.6,7.823]
[1751478524163,0.02,2560.7,2559.8,2.321]
[1751478524164,1.2862,2560.3,2559.8,2.321]
[1751478524362,1.2862,2560.3,2559.6,7.823]
[1751478524547,1.2862,2560.3,2559.7,2.321]
[1751478524876,1.2862,2560.3,2559.8,2.321]
[1751478525277,1.2862,2560.3,2559.6,9.20269964]
[1751478525474,1.2862,2560.3,2559.9,2.321]
[1751478525770,1.2862,2560.3,2559.6,7.823]
[1751478525771,5.1920744,2560.3,2559.6,7.823]
[1751478525977,0.51920744,2560.2,2559.6,7.823]
[1751478527083,1.2862,2560.3,2559.6,7.823]
[1751478530701,0.1952,2560.2,2559.7,0.1952]
[1751478531763,0.18347621,2560.2,2559.7,0.1952]
[1751478534561,0.1952,2559.9,2559.4,2.5162]
[1751478534903,0.1952,2559.6,2559.4,2.321]
[1751478535359,1.1724,2560.1,2559.4,2.321]
[1751478535562,1.1724,2560.1,2559.5,0.1952]
[1751478535563,0.1952,2560.0,2559.5,0.1952]
[1751478536585,1.192,2560.4,2559.4,3.5277]
[1751478536802,0.1952,2560.2,2559.7,0.1952]
[1751478536995,1.3872,2560.4,2559.9,0.1952]
[1751478538162,0.02,2560.3,2559.9,0.1952]
[1751478538397,0.02,2560.3,2559.9,1.3706]
[1751478538598,0.02,2560.3,2560.0,0.52771324]
[1751478538967,0.02,2560.3,2559.9,1.3706]
[1751478539615,0.02,2560.3,2559.9,0.1952]
[1751478539907,0.1952,2560.1,2559.8,2.308]
[1751478540469,0.02,2560.3,2559.8,2.308]
[1751478540669,0.02,2560.3,2559.9,0.1952]
[1751478540888,0.02,2560.3,2559.9,0.44552]
[1751478541408,0.02,2560.3,2559.9,4.15672138]
[1751478541608,0.01882826,2560.3,2560.1,0.1952]
[1751478542573,0.01882826,2560.3,2560.2,3.90594484]
[1751478542901,0.01882826,2560.3,2560.2,4.10114484]
[1751478543095,0.01882826,2560.3,2560.2,5.02059275]
[1751478543862,0.01882826,2560.3,2560.2,1.11464791]
[1751478544466,0.01882826,2560.3,2560.2,2.5022]
[1751478546870,0.01882826,2560.3,2560.2,11.12814484]
[1751478547906,0.01882826,2560.3,2560.2,7.2222]
[1751478548598,0.01882826,2560.3,2560.2,15.9492]
[1751478548798,0.01882826,2560.3,2560.2,4.72]
[1751478551686,0.21402826,2560.3,2560.2,4.72]
[1751478552201,0.21402826,2560.3,2559.9,2.307]
[1751478552410,0.21402826,2560.3,2559.8,19.0462]
[1751478552613,0.21402826,2560.3,2559.8,10.3242]
[1751478552793,0.21402826,2560.3,2559.8,19.0462]
[1751478553993,0.21402826,2560.3,2559.8,19.0452]
[1751478555394,0.21402826,2560.3,2559.8,12.7372]
[1751478555577,0.21402826,2560.3,2559.8,19.0442]
[1751478556291,0.21402826,2560.3,2559.8,19.0542]
[1751478558699,1.2062,2560.2,2559.9,8.716]
[1751478559010,0.1952,2560.1,2559.8,7.832]
[1751478561627,0.1952,2560.1,2559.8,12.552]
[1751478562626,0.1952,2560.1,2559.8,4.73]
[1751478563138,0.1952,2560.1,2559.8,0.01]
[1751478563446,0.21402826,2560.3,2559.9,1.2456]
[1751478564095,0.21402826,2560.3,2559.8,8.9162]
[1751478564534,0.21402826,2560.3,2559.8,0.2052]
[1751478564721,0.1952,2560.1,2559.8,0.01]
[1751478564927,0.01882826,2560.3,2559.8,0.01]
[1751478564928,1.2273,2560.0,2559.8,0.01]
[1751478565129,5.13355752,2560.0,2559.8,0.01]
[1751478565301,1.2273,2560.0,2559.8,0.01]
[1751478565495,0.51334811,2559.9,2559.8,0.01]
[1751478565700,5.6069507,2559.9,2559.8,0.01]
[1751478565918,18.9888075,2559.9,2559.8,0.01]
[1751478566117,59.91724453,2559.9,2559.8,0.01]
[1751478566321,25.28103962,2559.9,2559.8,0.01]
[1751478566504,16.57203962,2559.9,2559.8,0.01]
[1751478566718,19.49067159,2559.9,2559.8,0.01]
[1751478567145,15.584269,2559.9,2559.8,0.01]
[1751478567314,14.65583197,2559.9,2559.8,0.01]
[1751478567716,1.1872,2559.9,2559.8,0.01]
[1751478568536,5.64360259,2559.9,2559.8,0.01]
[1751478568813,58.9888075,2559.9,2559.8,0.01]
[1751478569011,15.65031308,2559.5,2559.4,0.01]
[1751478569327,40.58506298,2559.5,2559.4,0.01]
[1751478569712,27.23985807,2559.5,2559.4,0.01]
[1751478569914,27.23985807,2559.5,2559.0,0.01]
[1751478569915,14.45762377,2559.1,2559.0,1e-08]
[1751478570145,1.2245,2558.6,2557.8,2.294]
[1751478570445,0.1952,2558.1,2557.7,0.1952]
[1751478570645,3.90888353,2558.3,2556.8,8.02267016]
[1751478570646,1.2245,2558.0,2557.1,2.294]
[1751478570806,1.2245,2558.0,2557.2,0.2294]
[1751478571343,0.1952,2557.6,2557.2,0.4246]
[1751478571552,0.1952,2557.6,2557.2,0.1952]
[1751478573051,10.0,2557.9,2556.9,1.2871]
[1751478573206,0.1952,2557.3,2556.9,1.2871]
[1751478573406,0.1952,2557.3,2556.8,0.1952]
[1751478575210,30.0,2557.2,2556.8,0.1952]
[1751478575409,30.0,2557.2,2556.5,0.215955]
[1751478575410,3.01952,2557.1,2556.5,0.215955]
[1751478575643,1.1929,2557.2,2556.5,0.215955]
[1751478576059,5.10343629,2557.2,2556.5,0.215955]
[1751478576248,5.10357775,2557.2,2556.5,0.215955]
[1751478576465,3.91107388,2556.9,2556.5,0.215955]
[1751478576629,0.78220462,2556.8,2556.5,0.215955]
[1751478576967,1.1929,2557.2,2556.5,0.215955]
[1751478577131,9.8979,2557.2,2556.5,0.215955]
[1751478577333,1.1929,2557.2,2556.5,0.215955]
[1751478577537,1.1827,2557.5,2556.6,1.2333]
[1751478577841,1.1827,2558.1,2556.7,2.295]
[1751478578034,8.704,2558.0,2556.8,3.91112507]
[1751478578234,10.0,2557.9,2556.8,3.91112507]
[1751478578434,10.0,2557.9,2556.7,6.20625849]
[1751478578671,10.0,2557.9,2556.7,2.295]
[1751478578870,0.55,2557.7,2556.7,2.295]
[1751478579178,0.55,2557.3,2556.5,0.215955]
[1751478579335,3.910833,2557.0,2556.5,0.215955]
[1751478579535,0.4460833,2556.9,2556.5,0.215955]
[1751478579730,0.55,2557.1,2556.5,0.215955]
[1751478580141,8.704,2557.1,2556.5,0.215955]
[1751478580537,1.2328,2557.2,2556.5,0.215955]
[1751478580538,9.9358,2557.2,2556.5,0.215955]
[1751478580733,1.2422,2557.5,2556.7,1.2074]
[1751478580964,1.2422,2557.5,2556.7,5.11867547]
[1751478581160,1.2422,2557.5,2556.8,0.51186755]
[1751478581363,10.0,2557.7,2556.8,4.42300436]
[1751478581364,8.703,2557.7,2556.8,4.42300436]
[1751478581693,1.2714,2557.8,2556.9,3.91097268]
[1751478581889,3.90781784,2559.0,2556.8,2.80786755]
[1751478581890,1.2714,2558.2,2557.0,1.2947]
[1751478582176,1.2714,2558.2,2556.8,2.80786755]
[1751478582177,1.33452049,2558.4,2557.5,1.1986]
[1751478582352,11.1925,2558.5,2557.5,3.4946]
[1751478582554,1.1925,2558.5,2557.5,3.4946]
[1751478582877,18.51518215,2558.2,2557.0,1.196]
[1751478583035,10.0,2558.0,2557.0,1.196]
[1751478583239,8.702,2558.0,2557.0,1.196]
[1751478583742,12.61134854,2558.0,2557.0,1.196]
[1751478583942,4.45952999,2557.9,2557.0,1.196]
[1751478584264,1.316153,2557.8,2557.0,1.196]
[1751478585470,0.1952,2557.4,2557.0,1.196]
[1751478585671,8.701,2558.0,2557.0,1.196]
[1751478585898,0.1952,2557.7,2557.2,0.1952]
[1751478587193,0.1952,2557.7,2557.3,1.2195]
[1751478587490,0.1952,2558.0,2557.5,0.1952]
[1751478590270,0.1952,2558.0,2557.6,1.2366]
[1751478591714,10.0,2558.5,2557.6,1.2366]
[1751478591914,0.1,2558.0,2557.6,1.4318]
[1751478592987,0.1,2558.0,2557.7,4.72]
[1751478593187,0.1,2558.0,2557.9,0.1952]
[1751478593395,0.1,2558.0,2557.9,6.1785]
[1751478597632,0.1,2558.0,2557.9,10.08795697]
[1751478597830,0.1,2558.0,2557.9,6.1785]
[1751478598441,0.1,2558.0,2557.9,7.18730427]
[1751478598647,0.1,2558.0,2557.9,11.09676124]
[1751478598840,0.1,2558.0,2557.9,6.37676124]
[1751478600957,0.1,2558.0,2557.9,35.34488224]
[1751478601358,0.1,2558.0,2557.9,35.04252324]
[1751478601858,0.1,2558.0,2557.9,45.04252324]
[1751478602059,0.1,2558.0,2557.9,34.28744324]
[1751478602272,0.1,2558.0,2557.9,40.08050824]
[1751478602575,0.1,2558.0,2557.9,39.2595524]
[1751478602788,0.02,2559.0,2558.2,1.2135]
[1751478602939,0.02,2559.0,2558.9,3.90792918]
[1751478603135,0.02,2559.0,2558.9,5.31662918]
[1751478603472,0.02,2559.0,2558.9,1.4087]
[1751478603764,0.02,2559.0,2558.9,5.31662918]
[1751478604141,0.02,2559.0,2558.9,29.42847767]
[1751478604346,0.02,2559.0,2558.9,21.71663491]
[1751478604765,0.02,2559.0,2558.9,27.57463491]
[1751478604932,0.02,2559.0,2558.9,33.58241991]
[1751478605133,0.02,2559.0,2558.9,21.71663491]
[1751478605482,0.02,2559.0,2558.9,26.20700591]
[1751478605646,0.02,2559.0,2558.9,21.71663491]
[1751478605974,0.02,2559.0,2558.9,14.19670573]
[1751478606177,0.02,2559.0,2558.9,1.51138149]
[1751478606381,0.02,2559.0,2558.9,10.19538149]
[1751478606539,0.02,2559.0,2558.9,14.10331067]
[1751478607176,0.02,2559.0,2558.9,24.10331067]
[1751478608176,0.02,2559.0,2558.9,40.17263667]
[1751478608477,0.02,2559.0,2558.9,40.53900291]
[1751478608782,0.02489478,2560.1,2559.9,1.2956]
[1751478609346,0.02489478,2560.1,2559.9,5.20198349]
[1751478609566,0.02489478,2560.1,2560.0,3.90625]
[1751478609882,0.02489478,2560.1,2559.9,5.20192027]
[1751478610179,0.02489478,2560.1,2560.0,1.38829835]
[1751478610480,0.02489478,2560.1,2560.0,5.29454835]
[1751478611063,0.02489478,2560.1,2560.0,21.20694835]
[1751478611650,0.02489478,2560.1,2560.0,21.40021036]
[1751478612080,0.02489478,2560.1,2560.0,30.07721036]
[1751478612581,0.01882826,2560.3,2560.2,13.90594484]
[1751478612749,0.02,2560.7,2560.6,5.09773468]
[1751478612949,0.02,2560.7,2560.6,34.12699711]
[1751478613457,0.02,2560.7,2560.6,34.41761337]
[1751478613661,0.02,2560.7,2560.6,44.41761337]
[1751478614062,0.02,2560.7,2560.6,31.06635094]
[1751478614263,0.02,2560.7,2560.6,34.75873223]
[1751478615659,0.02,2560.7,2560.6,9.89539755]
[1751478615865,0.02,2560.7,2560.6,14.87301626]
[1751478616286,0.02,2560.7,2560.6,18.77835094]
[1751478616995,0.02,2560.7,2560.6,28.77835094]
[1751478617704,0.02,2561.5,2561.3,3.90426736]
[1751478617905,1.2037,2562.4,2561.7,3.90365772]
[1751478618066,0.02,2563.0,2561.7,3.90365772]
[1751478618067,1.1982,2562.7,2561.7,23.76765772]
[1751478619262,1.1982,2562.7,2561.7,53.09778372]
[1751478619458,1.235,2562.9,2561.7,53.09778372]
[1751478619993,1.235,2562.9,2561.7,47.34478172]
[1751478620202,1.235,2562.9,2561.7,54.94478172]
[1751478620401,1.235,2562.9,2561.7,67.75595607]
[1751478620697,0.02,2563.0,2561.7,68.30595607]
[1751478620875,1e-08,2561.8,2561.7,68.30595607]
[1751478621083,0.02,2563.0,2562.5,13.20920902]
[1751478621288,0.02,2563.0,2562.5,26.10973902]
[1751478621510,0.02,2563.0,2562.5,27.23537222]
[1751478621689,0.02,2563.0,2562.5,32.22295249]
[1751478621894,0.02,2563.0,2562.5,70.12295249]
[1751478622080,0.02,2563.0,2562.5,77.94195249]
[1751478622282,0.02,2563.0,2562.5,70.59195249]
[1751478622588,0.02,2563.0,2562.5,70.78895637]
[1751478623193,1.1872,2564.2,2563.0,1.2113]
[1751478623379,1.1872,2564.2,2563.2,10.0]
[1751478623581,1.1872,2564.2,2563.4,13.90097121]
[1751478623777,1.1872,2564.2,2563.5,12.56190603]
[1751478624110,1.1872,2564.2,2563.5,14.6225]
[1751478624325,1.1872,2564.2,2563.5,18.52334184]
[1751478624475,1.1872,2564.2,2563.7,3.90059604]
[1751478624678,1.1872,2564.2,2563.8,10.941]
[1751478625106,0.02,2564.4,2563.8,10.941]
[1751478625291,0.02,2564.4,2563.9,4.7]
[1751478625479,0.02,2564.4,2564.0,12.556156]
[1751478625696,0.02,2564.4,2564.0,17.256156]
[1751478625910,0.02,2564.4,2564.0,17.450556]
[1751478626081,0.02,2564.4,2564.0,4.8944]
[1751478626281,0.02,2564.4,2564.0,15.8314]
[1751478626792,0.02,2564.4,2564.0,11.1304]
[1751478627178,0.02,2564.4,2564.0,0.1944]
[1751478627387,1.2132,2564.1,2564.0,8.8494]
[1751478628691,1.2132,2564.1,2564.0,0.1944]
[1751478628894,1.2132,2564.1,2564.0,8.651]
[1751478629410,1.2132,2564.1,2563.8,2.269]
[1751478629612,1.2132,2564.1,2563.9,8.651]
[1751478630505,1.2132,2564.1,2564.0,8.65]
[1751478631615,1.2132,2564.1,2563.7,10.2794]
[1751478631925,1.2132,2564.1,2563.8,8.648]
[1751478632097,0.02,2564.1,2563.8,8.648]
[1751478632295,0.02,2564.1,2563.9,0.1944]
[1751478632527,0.02,2564.1,2564.0,8.647]
[1751478633026,1.257,2564.1,2564.0,8.646]
[1751478634423,0.02,2564.1,2564.0,8.646]
[1751478635217,0.02,2564.1,2564.0,8.8404]
[1751478636524,0.02,2564.1,2564.0,8.8374]
[1751478638458,0.02,2564.1,2564.0,8.64]
[1751478638459,1.2661,2564.1,2564.0,8.64]
[1751478638820,1.2661,2564.1,2563.7,10.2784]
[1751478639124,1.2661,2564.1,2563.8,8.639]
[1751478639125,0.1944,2564.0,2563.8,8.639]
[1751478640414,1.2661,2564.1,2563.8,8.639]
[1751478641751,1.2661,2564.1,2563.8,8.636]
[1751478641924,0.1944,2564.0,2563.7,7.816]
[1751478642117,0.1944,2564.0,2563.8,8.636]
[1751478644557,0.1944,2564.0,2563.7,7.816]
[1751478644727,0.1944,2564.0,2563.7,16.449]
[1751478645432,1.1914,2563.7,2563.3,2.268]
[1751478645626,1.3858,2563.7,2563.3,2.268]
[1751478645847,0.1944,2563.5,2563.3,2.268]
[1751478646228,1.2088,2563.4,2563.0,0.2044]
[1751478646443,0.1944,2563.1,2563.0,0.01]
[1751478646628,1.4032,2563.1,2563.0,0.01]
[1751478647471,2.33133915,2563.1,2562.6,0.1944]
[1751478647674,0.92813915,2563.0,2562.6,0.1944]
[1751478647836,0.92813915,2562.9,2562.6,0.1944]
[1751478648158,1.4032,2563.1,2562.6,0.1944]
[1751478648351,0.9283684,2563.0,2562.6,0.1944]
[1751478648545,0.9283684,2562.9,2562.6,0.1944]
[1751478648746,0.92833724,2562.8,2562.6,0.1944]
[1751478648955,1.4032,2563.1,2562.6,0.1944]
[1751478649132,0.92834904,2563.0,2562.6,0.1944]
[1751478649435,5.17413786,2562.6,2561.9,2.268]
[1751478649634,1.2796,2562.4,2561.9,2.268]
[1751478649960,1.2796,2562.4,2561.3,7.811]
[1751478649961,0.1944,2562.2,2561.7,2.4624]
[1751478650532,0.92752339,2562.1,2561.7,2.4624]
[1751478650751,0.1944,2562.2,2561.7,3.57254]
[1751478651076,0.1944,2562.5,2562.0,0.1944]
[1751478651280,0.92661035,2562.4,2562.0,8.628]
[1751478651487,1.1924,2562.6,2562.1,0.1944]
[1751478651670,0.92667248,2562.5,2562.1,0.1944]
[1751478651841,0.92667248,2562.4,2562.1,0.1944]
[1751478652047,1.2117,2562.9,2562.2,1.2517]
[1751478652274,0.92677243,2562.8,2562.5,0.1944]
[1751478652579,0.92632837,2562.7,2562.5,0.1944]
[1751478652875,1.2117,2562.9,2562.3,2.269]
[1751478653079,0.02,2563.1,2562.0,2.269]
[1751478653080,0.55,2562.6,2562.0,2.269]
[1751478653243,0.1944,2562.1,2562.0,2.269]
[1751478654066,1.3968,2562.1,2562.0,2.269]
[1751478655881,1.3968,2562.1,2561.5,0.01]
[1751478656083,1.3968,2562.1,2561.7,0.1944]
[1751478657151,0.55,2562.0,2561.5,0.01]
[1751478657498,0.1944,2561.7,2561.5,0.01]
[1751478658055,1.2532,2562.3,2561.5,0.01]
[1751478658293,1.2532,2562.3,2561.5,0.2044]
[1751478658489,0.1944,2562.0,2561.5,0.2044]
[1751478661976,0.1944,2562.0,2561.5,2.65984984]
[1751478662471,1.2532,2562.3,2561.7,0.1944]
[1751478662472,0.1944,2562.2,2561.7,0.1944]
[1751478663581,0.1944,2562.2,2561.8,4.7]
[1751478663820,1.4476,2562.3,2561.9,0.1944]
[1751478664375,0.1944,2562.3,2561.9,0.1944]
[1751478665306,0.1944,2562.1,2561.8,4.7]
[1751478666600,0.1944,2562.3,2561.8,5.60944]
[1751478667742,0.1944,2562.3,2561.8,4.8944]
[1751478668222,0.1944,2562.3,2561.9,4.7]
[1751478668938,13.90281707,2562.3,2561.6,4.7]
[1751478669237,13.90281707,2562.3,2561.5,0.01]
[1751478669238,0.55,2561.7,2561.5,0.01]
[1751478669439,15.7017451,2561.6,2561.5,0.01]
[1751478669738,28.71728622,2561.6,2561.5,0.01]
[1751478670110,1.2259,2561.1,2560.5,2.266]
[1751478670305,0.1952,2560.9,2560.5,2.266]
[1751478670511,0.1952,2561.2,2560.7,0.1952]
[1751478671538,11.1711,2561.8,2560.8,1.2333]
[1751478671743,0.1952,2561.4,2561.0,0.1952]
[1751478672513,1.1711,2561.8,2560.8,1.2333]
[1751478672714,1.3655,2561.8,2561.3,0.1952]
[1751478673515,0.1944,2561.8,2561.3,0.1952]
[1751478673729,0.1944,2561.8,2561.4,1.2244]
[1751478674869,0.1944,2561.8,2561.3,0.1952]
[1751478675142,0.55,2562.0,2561.2,2.257]
[1751478675347,1.2457,2562.1,2561.7,0.1944]
[1751478675849,0.1944,2561.7,2561.3,4.8952]
[1751478678563,4.45328841,2562.0,2561.2,2.257]
[1751478678768,0.1944,2561.6,2561.2,2.257]
[1751478682179,2.17581331,2562.1,2561.2,2.257]
[1751478682379,0.1944,2561.8,2561.4,0.1952]
[1751478682590,0.55,2561.9,2560.8,5.8763]
[1751478682786,0.1944,2561.6,2561.1,2.4522]
[1751478683283,1.2428,2561.6,2561.1,2.4522]
[1751478683705,1.2428,2561.6,2561.1,0.1952]
[1751478685177,1.2428,2561.6,2561.1,0.2052]
[1751478685910,1.2428,2561.6,2561.2,4.7]
[1751478687711,1.2428,2561.6,2561.1,0.2052]
[1751478687712,0.1952,2561.4,2561.1,0.01]
[1751478688289,0.02,2561.7,2561.1,13.91447935]
[1751478688493,0.1944,2561.6,2561.2,1.0726]
[1751478690221,0.02,2561.7,2561.2,6.96510408]
[1751478690512,0.02,2561.7,2561.4,0.1952]
[1751478695021,0.02,2561.7,2561.5,4.7]
[1751478695328,0.02,2561.7,2561.6,15.21411011]
[1751478696490,0.02,2561.7,2561.6,19.91411011]
[1751478696722,0.02,2561.7,2561.6,22.52031568]
[1751478699112,0.0008,2562.0,2561.9,4.96845298]
[1751478699310,0.0008,2562.0,2561.9,70.34655671]
[1751478699502,0.0008,2562.0,2561.9,75.53026171]
[1751478700735,0.0008,2562.0,2561.9,73.98933971]
[1751478700911,0.02,2562.8,2562.7,1.0638]
[1751478701112,0.02,2562.8,2562.7,26.5738]
[1751478701420,0.02,2562.8,2562.7,26.7682]
[1751478701811,0.02,2562.8,2562.7,30.67033446]
[1751478703324,0.02,2562.8,2562.7,26.7682]
[1751478703911,0.02,2562.8,2562.7,30.67033446]
[1751478704098,0.02,2562.8,2562.7,31.69905446]
[1751478704292,0.02,2562.8,2562.7,43.96366319]
[1751478704608,0.02,2562.8,2562.7,45.08396319]
[1751478705198,0.02,2562.8,2562.7,75.63396319]
[1751478705448,0.02,2562.8,2562.7,53.89828519]
[1751478705728,0.02,2562.8,2562.7,47.94415519]
[1751478706242,0.02,2564.2,2563.7,3.90050129]
[1751478706427,0.02,2564.2,2563.9,0.1944]
[1751478708660,0.02,2564.2,2564.0,8.560156]
[1751478708812,0.02,2564.2,2564.0,17.136156]
[1751478709012,0.02,2564.2,2564.0,19.25925357]
[1751478710045,0.02,2564.2,2564.0,29.25925357]
[1751478710232,0.02,2564.2,2564.0,30.39465357]
[1751478711948,0.02,2564.2,2564.0,26.49449757]
[1751478712147,0.02,2564.2,2564.0,8.571]
[1751478712357,0.02,2564.2,2563.6,6.902]
[1751478712648,0.02,2564.2,2563.8,0.1944]
[1751478712849,1.2546,2564.0,2563.8,8.569]
[1751478713349,1.2546,2564.0,2563.7,8.569]
[1751478718537,1.1454,2564.2,2563.8,4.66]
[1751478718722,1.3398,2564.2,2563.8,4.8544]
[1751478719444,1.1454,2564.2,2563.8,4.66]
[1751478720125,0.1944,2563.9,2563.8,4.66]
[1751478722129,1.1454,2564.2,2563.8,4.66]
[1751478722326,0.2144,2564.1,2563.8,4.66]
[1751478723062,0.0981,2564.1,2563.8,4.66]
[1751478723376,1.22245,2564.1,2563.8,4.66]
[1751478723541,0.02,2564.2,2563.9,4.66]
[1751478723750,0.2144,2564.2,2563.9,4.66]
[1751478725067,0.02,2564.2,2563.9,4.66]
[1751478725272,0.02,2564.2,2564.0,0.1944]
[1751478726067,1.0484,2564.1,2563.9,4.66]
[1751478726297,1.0484,2564.1,2563.6,2.227]
[1751478726298,0.1944,2564.0,2563.6,2.227]
[1751478726471,1.65352087,2564.0,2563.5,4.8544]
[1751478726667,0.1944,2564.0,2563.5,4.8544]
[1751478729867,0.02,2564.2,2563.6,4.93763447]
[1751478730068,0.02,2564.2,2563.7,12.44957954]
[1751478730274,0.02,2564.2,2563.9,0.1944]
[1751478730473,0.02,2564.2,2563.9,2.227]
[1751478730677,0.02,2564.2,2564.1,0.1944]
[1751478730988,0.02,2564.2,2564.1,1.2532]
[1751478731140,0.02,2564.2,2564.1,9.8132039]
[1751478731953,0.02,2564.2,2564.1,19.8132039]
[1751478733294,0.02,2564.2,2564.1,9.8132039]
[1751478733456,0.02,2564.2,2564.1,11.62679615]
[1751478733666,0.02,2564.2,2564.1,7.72679225]
[1751478733981,0.02,2564.2,2564.1,11.62679615]
[1751478735675,0.02,2564.2,2564.1,7.72679225]
[1751478736176,0.02,2564.2,2564.1,6.66799225]
[1751478736382,0.02,2564.2,2564.1,15.6224]
[1751478736751,0.02,2564.2,2564.1,4.8544]
[1751478736945,0.02,2564.2,2564.1,0.1944]
[1751478737894,1.0439,2564.0,2563.7,2.227]
[1751478738092,0.1944,2563.9,2563.7,2.227]
[1751478739055,0.55,2563.8,2563.7,2.227]
[1751478739264,0.55,2563.8,2563.6,0.02]
[1751478739265,1.2722,2563.7,2563.6,0.02]
[1751478741776,0.1944,2563.7,2563.6,0.02]
[1751478742101,0.1944,2563.9,2563.6,0.02]
[1751478742397,0.1944,2564.1,2563.6,1.09192923]
[1751478742558,0.1944,2564.1,2563.7,2.227]
[1751478745593,0.7444,2564.1,2563.7,2.227]
[1751478745797,0.55,2564.1,2563.7,2.227]
[1751478746091,0.1944,2563.9,2563.7,2.227]
[1751478748090,0.1944,2563.9,2563.7,6.887]
[1751478750004,0.55,2563.8,2563.7,6.887]
[1751478750207,1.6871,2563.8,2563.7,6.887]
[1751478751994,0.55,2563.8,2563.7,6.887]
[1751478752313,0.1944,2563.9,2563.7,6.887]
[1751478754018,0.1944,2563.9,2563.7,2.227]
[1751478754785,0.55,2563.8,2563.7,2.227]
[1751478755185,0.55,2563.8,2563.7,1.727]
[1751478755388,0.55,2563.8,2563.6,0.02]
[1751478755720,0.55,2563.9,2563.6,0.02]
[1751478758409,10.55,2563.9,2563.6,0.02]
[1751478758603,1.6009,2563.7,2563.6,0.02]
[1751478760928,0.55,2563.8,2563.6,0.02]
[1751478769121,0.56,2563.8,2563.6,0.02]
[1751478770057,0.01,2563.8,2563.6,1.0659]
[1751478776365,0.01,2563.8,2563.6,2.22499383]
[1751478777446,0.01,2563.8,2563.6,1.2603]
[1751478778176,0.01,2563.8,2563.7,0.1944]
[1751478779058,0.01,2563.8,2563.7,15.03331239]
[1751478781464,0.01,2563.8,2563.7,25.72131239]
[1751478783253,0.55,2565.0,2563.7,25.72131239]
[1751478783254,0.92827462,2565.1,2563.8,31.610272]
[1751478783455,0.02,2565.5,2565.4,10.0]
[1751478783456,0.1944,2565.5,2565.4,10.0]
[1751478783786,1.0,2566.6,2566.0,10.0]
[1751478783973,1.0,2566.6,2565.4,18.00541735]
[1751478783974,1.0,2566.6,2565.4,0.28707867]
[1751478784172,1.0,2566.6,2566.2,1.55254163]
[1751478784374,1.0,2566.6,2566.0,1.16451055]
[1751478784581,0.99,2566.4,2566.1,8.487]
[1751478784757,1.189,2566.4,2565.4,1.16451055]
[1751478785089,0.55,2566.3,2565.5,8.486]
[1751478785252,0.55,2566.3,2565.2,7.81]
[1751478785453,10.55,2566.3,2565.2,7.81]
[1751478785693,0.55,2566.1,2565.2,7.81]
[1751478785850,0.55,2566.1,2565.3,10.681]
[1751478786055,0.55,2566.1,2565.2,7.81]
[1751478786285,0.55,2565.9,2565.2,7.81]
[1751478786784,0.55,2565.9,2565.3,8.484]
[1751478786986,0.55,2565.5,2564.6,1.16451055]
[1751478787188,0.55,2565.5,2564.4,1.55254163]
[1751478787189,0.55,2565.5,2564.7,0.92737489]